[Event "Titled Tuesday Blitz December 13 Early 2022"]
[White "Moroni, Luca Jr"]
[Black "Seo, Jung Min"]
[WhiteFideId "865834"]
[BlackFideId "1734687"]
[WhiteElo "2830"]
[BlackElo "2647"]
[Result "1-0"]
[Round "07"]
[TimeControl "180+1"]
[Date "2022.12.14"]
[WhiteClock "0:00:21"]
[BlackClock "0:01:14"]

1. d4 {[%clk 0:03:00]}  Nf6 {[%clk 0:02:59]} 2. Bf4 {[%clk 0:03:00]}  d5 {[%clk 0:02:58]} 3. e3 {[%clk 0:03:00]}  e6 {[%clk 0:02:54]} 4. Nf3 {[%clk 0:03:00]}  c5 {[%clk 0:02:54]} 5. Nbd2 {[%clk 0:03:00]}  Nc6 {[%clk 0:02:51]} 6. c3 {[%clk 0:03:00]}  Bd6 {[%clk 0:02:51]} 7. dxc5 {[%clk 0:02:58]}  Bxc5 {[%clk 0:02:51]} 8. Bd3 {[%clk 0:02:58]}  Bd6 {[%clk 0:02:51]} 9. Bxd6 {[%clk 0:02:56]}  Qxd6 {[%clk 0:02:51]} 10. O-O {[%clk 0:02:57]}  O-O {[%clk 0:02:51]} 11. e4 {[%clk 0:02:57]}  Bd7 {[%clk 0:02:41]} 12. Re1 {[%clk 0:02:56]}  dxe4 {[%clk 0:02:38]} 13. Nxe4 {[%clk 0:02:57]}  Nxe4 {[%clk 0:02:38]} 14. Bxe4 {[%clk 0:02:58]}  Qxd1 {[%clk 0:02:38]} 15. Raxd1 {[%clk 0:02:59]}  Rfd8 {[%clk 0:02:36]} 16. Rd2 {[%clk 0:02:54]}  Be8 {[%clk 0:02:37]} 17. Red1 {[%clk 0:02:54]}  Rxd2 {[%clk 0:02:36]} 18. Rxd2 {[%clk 0:02:55]}  Rd8 {[%clk 0:02:34]} 19. Bxc6 {[%clk 0:02:50]}  Rxd2 {[%clk 0:02:34]} 20. Nxd2 {[%clk 0:02:50]}  Bxc6 {[%clk 0:02:35]} 21. g3 {[%clk 0:02:51]}  Kf8 {[%clk 0:02:34]} 22. Kf1 {[%clk 0:02:51]}  Ke7 {[%clk 0:02:34]} 23. Ke2 {[%clk 0:02:52]}  e5 {[%clk 0:02:35]} 24. Ke3 {[%clk 0:02:52]}  Ke6 {[%clk 0:02:34]} 25. f4 {[%clk 0:02:53]}  b6 {[%clk 0:02:28]} 26. c4 {[%clk 0:02:53]}  f6 {[%clk 0:02:22]} 27. b4 {[%clk 0:02:53]}  h6 {[%clk 0:02:12]} 28. a3 {[%clk 0:02:45]}  g5 {[%clk 0:02:09]} 29. fxg5 {[%clk 0:02:41]}  hxg5 {[%clk 0:02:09]} 30. g4 {[%clk 0:02:38]}  f5 {[%clk 0:02:09]} 31. gxf5+ {[%clk 0:02:37]}  Kxf5 {[%clk 0:02:10]} 32. b5 {[%clk 0:02:31]}  Bb7 {[%clk 0:02:02]} 33. a4 {[%clk 0:02:30]}  Ba8 {[%clk 0:01:52]} 34. Nb3 {[%clk 0:02:15]}  Bb7 {[%clk 0:01:51]} 35. a5 {[%clk 0:02:10]}  Ke6 {[%clk 0:01:50]} 36. a6 {[%clk 0:02:00]}  Bh1 {[%clk 0:01:43]} 37. c5 {[%clk 0:01:30]}  bxc5 {[%clk 0:01:43]} 38. Nxc5+ {[%clk 0:01:28]}  Kd6 {[%clk 0:01:29]} 39. Ne4+ {[%clk 0:00:31]}  Kc7 {[%clk 0:01:24]} 40. Nxg5 {[%clk 0:00:27]}  Kb6 {[%clk 0:01:23]} 41. h4 {[%clk 0:00:26]}  Bd5 {[%clk 0:01:21]} 42. h5 {[%clk 0:00:25]}  Kxb5 {[%clk 0:01:22]} 43. h6 {[%clk 0:00:25]}  Bg8 {[%clk 0:01:22]} 44. Ke4 {[%clk 0:00:21]}  Kxa6 {[%clk 0:01:22]} 45. Kxe5 {[%clk 0:00:22]}  Kb7 {[%clk 0:01:17]} 46. Kf6 {[%clk 0:00:22]}  a5 {[%clk 0:01:17]} 47. Kg7 {[%clk 0:00:23]}  Bh7 {[%clk 0:01:13]} 48. Kxh7 {[%clk 0:00:21]}  a4 {[%clk 0:01:13]} 49. Kg6 {[%clk 0:00:20]}  a3 {[%clk 0:01:14]} 50. h7 {[%clk 0:00:21]} 1-0


[Site "https://www.chess.com"]

[Event "Titled Tuesday Blitz December 13 Early 2022"]
[White "Muminova, Nafisa"]
[Black "Bagwe Gaurang"]
[WhiteFideId "14201526"]
[BlackFideId "45039895"]
[WhiteElo "2258"]
[BlackElo "1847"]
[Result "0-1"]
[Round "07"]
[TimeControl "180+1"]
[Date "2022.12.14"]
[WhiteClock "0:00:02"]
[BlackClock "0:00:09"]

1. e4 {[%clk 0:03:00]}  c5 {[%clk 0:02:53]} 2. Nf3 {[%clk 0:03:00]}  d6 {[%clk 0:02:40]} 3. d4 {[%clk 0:02:59]}  cxd4 {[%clk 0:02:41]} 4. Nxd4 {[%clk 0:03:00]}  Nf6 {[%clk 0:02:41]} 5. Nc3 {[%clk 0:03:00]}  a6 {[%clk 0:02:41]} 6. h3 {[%clk 0:03:00]}  e5 {[%clk 0:02:38]} 7. Nde2 {[%clk 0:02:58]}  h5 {[%clk 0:02:37]} 8. g3 {[%clk 0:02:47]}  Be7 {[%clk 0:02:37]} 9. Bg2 {[%clk 0:02:46]}  Be6 {[%clk 0:02:37]} 10. O-O {[%clk 0:02:34]}  Nbd7 {[%clk 0:02:36]} 11. f4 {[%clk 0:02:33]}  b5 {[%clk 0:02:32]} 12. f5 {[%clk 0:02:29]}  Bc4 {[%clk 0:02:30]} 13. b3 {[%clk 0:02:29]}  Qb6+ {[%clk 0:02:25]} 14. Kh1 {[%clk 0:02:25]}  Bxe2 {[%clk 0:02:11]} 15. Qxe2 {[%clk 0:02:24]}  Rc8 {[%clk 0:02:09]} 16. Bb2 {[%clk 0:01:59]}  Nb8 {[%clk 0:02:08]} 17. Rad1 {[%clk 0:01:58]}  Nc6 {[%clk 0:02:08]} 18. Nd5 {[%clk 0:01:49]}  Nxd5 {[%clk 0:02:05]} 19. exd5 {[%clk 0:01:35]}  Nb8 {[%clk 0:02:05]} 20. Bf3 {[%clk 0:01:24]}  h4 {[%clk 0:01:54]} 21. g4 {[%clk 0:01:16]}  Kd7 {[%clk 0:01:47]} 22. Be4 {[%clk 0:01:09]}  Bg5 {[%clk 0:01:41]} 23. f6 {[%clk 0:01:03]}  g6 {[%clk 0:01:41]} 24. Qd3 {[%clk 0:00:43]}  Qe3 {[%clk 0:01:35]} 25. Qxe3 {[%clk 0:00:32]}  Bxe3 {[%clk 0:01:34]} 26. Rf3 {[%clk 0:00:32]}  Bg5 {[%clk 0:01:30]} 27. c3 {[%clk 0:00:27]}  Rc7 {[%clk 0:01:25]} 28. a4 {[%clk 0:00:26]}  Rhc8 {[%clk 0:01:24]} 29. axb5 {[%clk 0:00:23]}  axb5 {[%clk 0:01:24]} 30. Ra1 {[%clk 0:00:23]}  Rb7 {[%clk 0:01:19]} 31. Ra5 {[%clk 0:00:19]}  Rcc7 {[%clk 0:01:09]} 32. Bxg6 {[%clk 0:00:18]}  fxg6 {[%clk 0:00:41]} 33. f7 {[%clk 0:00:18]}  Be7 {[%clk 0:00:41]} 34. f8=Q {[%clk 0:00:18]}  Bxf8 {[%clk 0:00:41]} 35. Rxf8 {[%clk 0:00:18]}  Ke7 {[%clk 0:00:42]} 36. Rf3 {[%clk 0:00:17]}  Nd7 {[%clk 0:00:41]} 37. Ra8 {[%clk 0:00:17]}  Nf6 {[%clk 0:00:39]} 38. Rd3 {[%clk 0:00:14]}  Ne4 {[%clk 0:00:38]} 39. Kg2 {[%clk 0:00:13]}  Kf7 {[%clk 0:00:25]} 40. Rh8 {[%clk 0:00:11]}  g5 {[%clk 0:00:19]} 41. Rh6 {[%clk 0:00:10]}  Kg7 {[%clk 0:00:16]} 42. Re6 {[%clk 0:00:09]}  Re7 {[%clk 0:00:16]} 43. Re3 {[%clk 0:00:08]}  Rxe6 {[%clk 0:00:15]} 44. dxe6 {[%clk 0:00:09]}  Nf6 {[%clk 0:00:15]} 45. Rd3 {[%clk 0:00:08]}  d5 {[%clk 0:00:15]} 46. Ba3 {[%clk 0:00:07]}  e4 {[%clk 0:00:15]} 47. Rd2 {[%clk 0:00:07]}  Ra7 {[%clk 0:00:12]} 48. Bb4 {[%clk 0:00:07]}  Ra1 {[%clk 0:00:12]} 49. e7 {[%clk 0:00:06]}  Kf7 {[%clk 0:00:12]} 50. Rf2 {[%clk 0:00:06]}  Ra8 {[%clk 0:00:12]} 51. Bc5 {[%clk 0:00:06]}  Ke6 {[%clk 0:00:12]} 52. Bd4 {[%clk 0:00:05]}  Nd7 {[%clk 0:00:12]} 53. Rf5 {[%clk 0:00:03]}  Ra2+ {[%clk 0:00:08]} 54. Kf1 {[%clk 0:00:03]}  Kxe7 {[%clk 0:00:08]} 55. Rxg5 {[%clk 0:00:02]}  Rh2 {[%clk 0:00:08]} 56. Rxd5 {[%clk 0:00:02]}  Rxh3 {[%clk 0:00:08]} 57. Rxb5 {[%clk 0:00:02]}  Rf3+ {[%clk 0:00:09]} 58. Kg2 {[%clk 0:00:02]}  h3+ {[%clk 0:00:09]} 59. Kg1 {[%clk 0:00:02]}  e3 {[%clk 0:00:09]} 0-1


[Site "https://www.chess.com"]

[Event "Titled Tuesday Blitz December 13 Early 2022"]
[White "Navara, David"]
[Black "Csonka, Balazs"]
[WhiteFideId "309095"]
[BlackFideId "742910"]
[WhiteElo "2676"]
[BlackElo "2404"]
[Result "1-0"]
[Round "07"]
[TimeControl "180+1"]
[Date "2022.12.13"]
[WhiteClock "0:00:03"]
[BlackClock "0:00:03"]

1. d4 {[%clk 0:03:00]}  d5 {[%clk 0:02:58]} 2. c4 {[%clk 0:03:01]}  dxc4 {[%clk 0:02:53]} 3. e4 {[%clk 0:03:00]}  b5 {[%clk 0:02:50]} 4. a4 {[%clk 0:02:56]}  c6 {[%clk 0:02:48]} 5. Nc3 {[%clk 0:02:55]}  a6 {[%clk 0:02:43]} 6. axb5 {[%clk 0:02:54]}  cxb5 {[%clk 0:02:44]} 7. Nxb5 {[%clk 0:02:54]}  axb5 {[%clk 0:02:44]} 8. Rxa8 {[%clk 0:02:55]}  Bb7 {[%clk 0:02:45]} 9. Ra2 {[%clk 0:02:55]}  e6 {[%clk 0:02:44]} 10. Ne2 {[%clk 0:02:53]}  Bxe4 {[%clk 0:02:13]} 11. b3 {[%clk 0:02:53]}  Nc6 {[%clk 0:02:03]} 12. bxc4 {[%clk 0:02:47]}  Nb4 {[%clk 0:01:38]} 13. Rd2 {[%clk 0:02:45]}  bxc4 {[%clk 0:01:37]} 14. Nc3 {[%clk 0:02:38]}  Nd3+ {[%clk 0:01:13]} 15. Bxd3 {[%clk 0:02:38]}  Bxd3 {[%clk 0:01:14]} 16. d5 {[%clk 0:01:32]}  Nf6 {[%clk 0:00:42]} 17. Qa4+ {[%clk 0:01:26]}  Qd7 {[%clk 0:00:42]} 18. Qa8+ {[%clk 0:01:17]}  Qd8 {[%clk 0:00:41]} 19. Qc6+ {[%clk 0:01:18]}  Qd7 {[%clk 0:00:41]} 20. Rb2 {[%clk 0:01:14]}  Bd6 {[%clk 0:00:17]} 21. Bg5 {[%clk 0:00:42]}  exd5 {[%clk 0:00:09]} 22. Qa8+ {[%clk 0:00:39]}  Qd8 {[%clk 0:00:05]} 23. Qxd8+ {[%clk 0:00:39]}  Kxd8 {[%clk 0:00:06]} 24. Nxd5 {[%clk 0:00:33]}  Re8+ {[%clk 0:00:03]} 25. Kd1 {[%clk 0:00:33]}  Re5 {[%clk 0:00:03]} 26. Bxf6+ {[%clk 0:00:23]}  gxf6 {[%clk 0:00:03]} 27. Nf4 {[%clk 0:00:24]}  Bf5 {[%clk 0:00:02]} 28. Kd2 {[%clk 0:00:17]}  Rc5 {[%clk 0:00:01]} 29. Ne2 {[%clk 0:00:17]}  Be5 {[%clk 0:00:02]} 30. Nc3 {[%clk 0:00:16]}  Rc7 {[%clk 0:00:02]} 31. Rb5 {[%clk 0:00:06]}  Rd7+ {[%clk 0:00:02]} 32. Nd5 {[%clk 0:00:06]}  Be4 {[%clk 0:00:02]} 33. Ke3 {[%clk 0:00:04]}  Bxd5 {[%clk 0:00:02]} 34. f4 {[%clk 0:00:04]}  Bc7 {[%clk 0:00:02]} 35. Rd1 {[%clk 0:00:05]}  Be6 {[%clk 0:00:02]} 36. Rxd7+ {[%clk 0:00:04]}  Kxd7 {[%clk 0:00:02]} 37. f5 {[%clk 0:00:04]}  Kc6 {[%clk 0:00:02]} 38. fxe6 {[%clk 0:00:03]}  fxe6 {[%clk 0:00:03]} 39. Rh5 {[%clk 0:00:02]}  f5 {[%clk 0:00:03]} 40. Rxh7 {[%clk 0:00:02]}  Be5 {[%clk 0:00:04]} 41. Kd2 {[%clk 0:00:03]}  Kd5 {[%clk 0:00:04]} 42. h4 {[%clk 0:00:03]}  Ke4 {[%clk 0:00:04]} 43. h5 {[%clk 0:00:03]}  c3+ {[%clk 0:00:04]} 44. Kc2 {[%clk 0:00:03]}  Ke3 {[%clk 0:00:04]} 45. Re7 {[%clk 0:00:03]}  Kf2 {[%clk 0:00:04]} 46. Rxe6 {[%clk 0:00:04]}  Bh8 {[%clk 0:00:04]} 47. Rg6 {[%clk 0:00:02]}  f4 {[%clk 0:00:04]} 48. h6 {[%clk 0:00:03]}  Ke3 {[%clk 0:00:03]} 49. h7 {[%clk 0:00:03]} 1-0


[Site "https://www.chess.com"]

[Event "Titled Tuesday Blitz December 13 Early 2022"]
[White "Odegov, Artem"]
[Black "Berezin, Viktor"]
[WhiteFideId "34183644"]
[BlackFideId "14107872"]
[WhiteElo "2300"]
[BlackElo "2310"]
[Result "1-0"]
[Round "07"]
[TimeControl "180+1"]
[Date "2022.12.14"]
[WhiteClock "0:01:08"]
[BlackClock "0:00:04"]

1. d4 {[%clk 0:03:00]}  Nf6 {[%clk 0:02:59]} 2. c4 {[%clk 0:03:00]}  g6 {[%clk 0:02:59]} 3. Nc3 {[%clk 0:03:00]}  Bg7 {[%clk 0:03:00]} 4. e4 {[%clk 0:03:00]}  O-O {[%clk 0:03:00]} 5. h3 {[%clk 0:03:01]}  d6 {[%clk 0:03:00]} 6. Be3 {[%clk 0:03:01]}  e5 {[%clk 0:02:56]} 7. d5 {[%clk 0:03:01]}  c5 {[%clk 0:02:56]} 8. g4 {[%clk 0:02:59]}  a6 {[%clk 0:02:53]} 9. a4 {[%clk 0:02:59]}  Ne8 {[%clk 0:02:31]} 10. Bd3 {[%clk 0:02:59]}  Nc7 {[%clk 0:02:26]} 11. Nge2 {[%clk 0:02:58]}  b5 {[%clk 0:02:26]} 12. axb5 {[%clk 0:02:57]}  axb5 {[%clk 0:02:27]} 13. Rxa8 {[%clk 0:02:57]}  Nxa8 {[%clk 0:02:28]} 14. cxb5 {[%clk 0:02:58]}  Nb6 {[%clk 0:02:27]} 15. Ng3 {[%clk 0:02:57]}  N8d7 {[%clk 0:02:23]} 16. Qe2 {[%clk 0:02:54]}  Qc7 {[%clk 0:02:21]} 17. f3 {[%clk 0:02:49]}  c4 {[%clk 0:02:15]} 18. Bc2 {[%clk 0:02:47]}  Nc5 {[%clk 0:02:15]} 19. h4 {[%clk 0:02:45]}  Bd7 {[%clk 0:01:37]} 20. h5 {[%clk 0:02:43]}  Nd3+ {[%clk 0:01:31]} 21. Bxd3 {[%clk 0:02:42]}  cxd3 {[%clk 0:01:31]} 22. Qxd3 {[%clk 0:02:43]}  Nc4 {[%clk 0:01:30]} 23. Bc1 {[%clk 0:02:35]}  Qc5 {[%clk 0:01:25]} 24. Nf1 {[%clk 0:02:19]}  Bxb5 {[%clk 0:01:21]} 25. Nxb5 {[%clk 0:02:14]}  Qxb5 {[%clk 0:01:22]} 26. Nd2 {[%clk 0:02:12]}  Rc8 {[%clk 0:01:14]} 27. Ke2 {[%clk 0:02:05]}  Qb4 {[%clk 0:01:04]} 28. Nxc4 {[%clk 0:01:56]}  Rxc4 {[%clk 0:01:00]} 29. Bd2 {[%clk 0:01:56]}  Qc5 {[%clk 0:00:59]} 30. b4 {[%clk 0:01:51]}  Qc7 {[%clk 0:00:57]} 31. Ra1 {[%clk 0:01:47]}  h6 {[%clk 0:00:40]} 32. hxg6 {[%clk 0:01:42]}  fxg6 {[%clk 0:00:40]} 33. b5 {[%clk 0:01:43]}  Rc5 {[%clk 0:00:29]} 34. Ra6 {[%clk 0:01:42]}  Kh7 {[%clk 0:00:27]} 35. Rc6 {[%clk 0:01:41]}  Rxc6 {[%clk 0:00:23]} 36. bxc6 {[%clk 0:01:36]}  h5 {[%clk 0:00:23]} 37. gxh5 {[%clk 0:01:35]}  gxh5 {[%clk 0:00:24]} 38. Qb5 {[%clk 0:01:36]}  Bf6 {[%clk 0:00:21]} 39. Ba5 {[%clk 0:01:35]}  Qg7 {[%clk 0:00:18]} 40. Qb7 {[%clk 0:01:31]}  Be7 {[%clk 0:00:18]} 41. Qb6 {[%clk 0:01:24]}  Bh4 {[%clk 0:00:14]} 42. Be1 {[%clk 0:01:21]}  Qg2+ {[%clk 0:00:13]} 43. Bf2 {[%clk 0:01:21]}  Bxf2 {[%clk 0:00:10]} 44. Qxf2 {[%clk 0:01:22]}  Qg7 {[%clk 0:00:11]} 45. Kd3 {[%clk 0:01:19]}  Qc7 {[%clk 0:00:10]} 46. Qb2 {[%clk 0:01:18]}  Qa5 {[%clk 0:00:09]} 47. Qb7+ {[%clk 0:01:16]}  Kg6 {[%clk 0:00:09]} 48. c7 {[%clk 0:01:16]}  Qa3+ {[%clk 0:00:09]} 49. Kc4 {[%clk 0:01:17]}  Qa4+ {[%clk 0:00:09]} 50. Qb4 {[%clk 0:01:16]}  Qa6+ {[%clk 0:00:09]} 51. Kc3 {[%clk 0:01:15]}  Qa1+ {[%clk 0:00:09]} 52. Kd2 {[%clk 0:01:12]}  Qa2+ {[%clk 0:00:09]} 53. Kc1 {[%clk 0:01:11]}  Qa6 {[%clk 0:00:06]} 54. Qc3 {[%clk 0:01:08]}  Qc8 {[%clk 0:00:05]} 55. Qc6 {[%clk 0:01:08]}  h4 {[%clk 0:00:04]} 56. Qxd6+ {[%clk 0:01:08]}  Kh5 {[%clk 0:00:05]} 57. Qxe5+ {[%clk 0:01:08]}  Kg6 {[%clk 0:00:04]} 58. Qe6+ {[%clk 0:01:08]} 1-0


[Site "https://www.chess.com"]

[Event "Titled Tuesday Blitz December 13 Early 2022"]
[White "Ohanyan, Emin"]
[Black "Lenderman, Aleksandr"]
[WhiteFideId "13312022"]
[BlackFideId "2021285"]
[WhiteElo "2352"]
[BlackElo "2607"]
[Result "1-0"]
[Round "07"]
[TimeControl "180+1"]
[Date "2022.12.13"]
[WhiteClock "0:01:01"]
[BlackClock "0:02:30"]

1. e4 {[%clk 0:03:00]}  e5 {[%clk 0:02:59]} 2. Nc3 {[%clk 0:03:00]}  Nf6 {[%clk 0:02:58]} 3. Bc4 {[%clk 0:03:01]}  Nxe4 {[%clk 0:02:57]} 4. Qh5 {[%clk 0:03:02]}  Nd6 {[%clk 0:02:53]} 5. Qxe5+ {[%clk 0:03:01]}  Qe7 {[%clk 0:02:53]} 6. Qxe7+ {[%clk 0:03:01]}  Bxe7 {[%clk 0:02:53]} 7. Bb3 {[%clk 0:03:02]}  O-O {[%clk 0:02:52]} 8. d4 {[%clk 0:02:46]}  Nf5 {[%clk 0:02:51]} 9. Nge2 {[%clk 0:02:46]}  c6 {[%clk 0:02:51]} 10. d5 {[%clk 0:02:45]}  Na6 {[%clk 0:02:50]} 11. Bf4 {[%clk 0:02:45]}  Nc5 {[%clk 0:02:50]} 12. O-O-O {[%clk 0:02:45]}  a5 {[%clk 0:02:46]} 13. Rhe1 {[%clk 0:02:43]}  Bf6 {[%clk 0:02:46]} 14. g4 {[%clk 0:02:25]}  Nh4 {[%clk 0:02:46]} 15. Bd6 {[%clk 0:01:36]}  Nxb3+ {[%clk 0:02:44]} 16. axb3 {[%clk 0:01:37]}  Rd8 {[%clk 0:02:43]} 17. Ng1 {[%clk 0:01:15]}  g5 {[%clk 0:02:35]} 18. Ne4 {[%clk 0:01:13]}  Bg7 {[%clk 0:02:32]} 19. Be7 {[%clk 0:01:00]}  Re8 {[%clk 0:02:30]} 20. Nd6 {[%clk 0:01:01]}  Rxe7 {[%clk 0:02:29]} 21. Rxe7 {[%clk 0:01:02]}  Bf8 {[%clk 0:02:30]} 22. Re8 {[%clk 0:01:01]} 1-0


[Site "https://www.chess.com"]

[Event "Titled Tuesday Blitz December 13 Early 2022"]
[White "Papasimakopoulos, Alexandros"]
[Black "Abasov, Nijat"]
[WhiteFideId "4244125"]
[BlackFideId "13402960"]
[WhiteElo "2384"]
[BlackElo "2546"]
[Result "1-0"]
[Round "07"]
[TimeControl "180+1"]
[Date "2022.12.13"]
[WhiteClock "0:00:22"]
[BlackClock "0:00:08"]

1. d4 {[%clk 0:02:48]}  Nf6 {[%clk 0:03:00]} 2. c4 {[%clk 0:02:44]}  e6 {[%clk 0:03:00]} 3. Nc3 {[%clk 0:02:43]}  Bb4 {[%clk 0:03:00]} 4. Qc2 {[%clk 0:02:43]}  d5 {[%clk 0:02:59]} 5. cxd5 {[%clk 0:02:42]}  Qxd5 {[%clk 0:03:00]} 6. Nf3 {[%clk 0:02:41]}  Qf5 {[%clk 0:02:53]} 7. Qxf5 {[%clk 0:02:41]}  exf5 {[%clk 0:02:53]} 8. a3 {[%clk 0:02:41]}  Be7 {[%clk 0:02:53]} 9. Bf4 {[%clk 0:02:41]}  c6 {[%clk 0:02:53]} 10. e3 {[%clk 0:02:41]}  Be6 {[%clk 0:02:52]} 11. Bd3 {[%clk 0:02:39]}  h6 {[%clk 0:02:47]} 12. h3 {[%clk 0:02:32]}  Nbd7 {[%clk 0:02:47]} 13. Ke2 {[%clk 0:02:28]}  Nb6 {[%clk 0:02:45]} 14. Rhc1 {[%clk 0:02:26]}  O-O {[%clk 0:02:40]} 15. Be5 {[%clk 0:02:20]}  Rfe8 {[%clk 0:02:38]} 16. Nd2 {[%clk 0:02:09]}  Nfd7 {[%clk 0:02:27]} 17. Bh2 {[%clk 0:02:08]}  g5 {[%clk 0:02:19]} 18. Kf1 {[%clk 0:02:07]}  Kg7 {[%clk 0:02:20]} 19. b4 {[%clk 0:01:55]}  a5 {[%clk 0:02:10]} 20. b5 {[%clk 0:01:55]}  c5 {[%clk 0:02:10]} 21. Ne2 {[%clk 0:01:48]}  Rac8 {[%clk 0:02:10]} 22. Nc4 {[%clk 0:01:39]}  Na4 {[%clk 0:01:46]} 23. Nxa5 {[%clk 0:01:27]}  Nb2 {[%clk 0:01:33]} 24. Bc2 {[%clk 0:01:22]}  b6 {[%clk 0:01:27]} 25. Nc6 {[%clk 0:01:22]}  Bf6 {[%clk 0:01:01]} 26. a4 {[%clk 0:01:21]}  f4 {[%clk 0:00:58]} 27. exf4 {[%clk 0:00:59]}  cxd4 {[%clk 0:00:49]} 28. Nexd4 {[%clk 0:00:54]}  Bc4+ {[%clk 0:00:50]} 29. Kg1 {[%clk 0:00:55]}  Nd3 {[%clk 0:00:28]} 30. Rd1 {[%clk 0:00:43]}  N7c5 {[%clk 0:00:27]} 31. Rab1 {[%clk 0:00:35]}  Kf8 {[%clk 0:00:13]} 32. Nf5 {[%clk 0:00:32]}  Re6 {[%clk 0:00:12]} 33. fxg5 {[%clk 0:00:31]}  hxg5 {[%clk 0:00:13]} 34. Nd6 {[%clk 0:00:31]}  Rxd6 {[%clk 0:00:09]} 35. Bxd6+ {[%clk 0:00:32]}  Kg7 {[%clk 0:00:10]} 36. a5 {[%clk 0:00:28]}  bxa5 {[%clk 0:00:10]} 37. Nxa5 {[%clk 0:00:27]}  Ba2 {[%clk 0:00:08]} 38. Bxd3 {[%clk 0:00:25]}  Nxd3 {[%clk 0:00:09]} 39. b6 {[%clk 0:00:22]}  Bxb1 {[%clk 0:00:10]} 40. b7 {[%clk 0:00:22]}  Rd8 {[%clk 0:00:08]} 41. Rxb1 {[%clk 0:00:22]} 1-0


[Site "https://www.chess.com"]

[Event "Titled Tuesday Blitz December 13 Early 2022"]
[White "Paravyan, David"]
[Black "Khoroshev, Nikita"]
[WhiteFideId "4194985"]
[BlackFideId "14200287"]
[WhiteElo "2551"]
[BlackElo "2354"]
[Result "1-0"]
[Round "07"]
[TimeControl "180+1"]
[Date "2022.12.13"]
[WhiteClock "0:00:35"]
[BlackClock "0:00:59"]

1. e4 {[%clk 0:03:00]}  e5 {[%clk 0:02:49]} 2. Nf3 {[%clk 0:02:57]}  Nc6 {[%clk 0:02:49]} 3. Nc3 {[%clk 0:02:57]}  Nf6 {[%clk 0:02:49]} 4. d4 {[%clk 0:02:58]}  Bb4 {[%clk 0:02:48]} 5. Nxe5 {[%clk 0:02:57]}  Qe7 {[%clk 0:02:48]} 6. Qd3 {[%clk 0:02:56]}  Nxe5 {[%clk 0:02:46]} 7. dxe5 {[%clk 0:02:57]}  Qxe5 {[%clk 0:02:47]} 8. Bd2 {[%clk 0:02:58]}  O-O {[%clk 0:02:42]} 9. O-O-O {[%clk 0:02:54]}  d6 {[%clk 0:02:41]} 10. f3 {[%clk 0:02:53]}  Be6 {[%clk 0:02:23]} 11. a3 {[%clk 0:02:53]}  Bc5 {[%clk 0:02:21]} 12. Be3 {[%clk 0:02:45]}  Bxe3+ {[%clk 0:02:21]} 13. Qxe3 {[%clk 0:02:46]}  a6 {[%clk 0:02:14]} 14. Be2 {[%clk 0:02:44]}  Rfe8 {[%clk 0:02:13]} 15. h4 {[%clk 0:02:40]}  Qa5 {[%clk 0:02:11]} 16. g4 {[%clk 0:02:18]}  b5 {[%clk 0:02:11]} 17. g5 {[%clk 0:02:17]}  Nd7 {[%clk 0:02:11]} 18. h5 {[%clk 0:01:58]}  b4 {[%clk 0:02:10]} 19. axb4 {[%clk 0:01:59]}  Qxb4 {[%clk 0:02:11]} 20. Qd4 {[%clk 0:01:55]}  a5 {[%clk 0:01:58]} 21. h6 {[%clk 0:01:50]}  Qxd4 {[%clk 0:01:57]} 22. Rxd4 {[%clk 0:01:51]}  g6 {[%clk 0:01:49]} 23. Bb5 {[%clk 0:01:49]}  Re7 {[%clk 0:01:43]} 24. Bxd7 {[%clk 0:01:46]}  Rxd7 {[%clk 0:01:44]} 25. Rhd1 {[%clk 0:01:41]}  Re7 {[%clk 0:01:32]} 26. f4 {[%clk 0:01:36]}  Ree8 {[%clk 0:01:27]} 27. b3 {[%clk 0:01:34]}  Rf8 {[%clk 0:01:25]} 28. e5 {[%clk 0:01:26]}  dxe5 {[%clk 0:01:23]} 29. fxe5 {[%clk 0:01:26]}  c5 {[%clk 0:01:13]} 30. Rd6 {[%clk 0:01:24]}  c4 {[%clk 0:01:13]} 31. bxc4 {[%clk 0:01:24]}  Bxc4 {[%clk 0:01:13]} 32. Ne4 {[%clk 0:01:25]}  a4 {[%clk 0:01:11]} 33. Nf6+ {[%clk 0:01:25]}  Kh8 {[%clk 0:01:11]} 34. Kb2 {[%clk 0:01:04]}  Be6 {[%clk 0:01:03]} 35. Rxe6 {[%clk 0:00:59]}  fxe6 {[%clk 0:01:03]} 36. Rd7 {[%clk 0:00:59]}  Rxf6 {[%clk 0:00:58]} 37. exf6 {[%clk 0:01:00]}  Kg8 {[%clk 0:00:54]} 38. Rg7+ {[%clk 0:00:59]}  Kh8 {[%clk 0:00:54]} 39. Re7 {[%clk 0:00:56]}  Kg8 {[%clk 0:00:54]} 40. Rxe6 {[%clk 0:00:44]}  Ra7 {[%clk 0:00:54]} 41. Ka3 {[%clk 0:00:34]}  Kf7 {[%clk 0:00:53]} 42. Re7+ {[%clk 0:00:33]}  Rxe7 {[%clk 0:00:53]} 43. fxe7 {[%clk 0:00:34]}  Kxe7 {[%clk 0:00:54]} 44. Kxa4 {[%clk 0:00:35]}  Ke6 {[%clk 0:00:55]} 45. c4 {[%clk 0:00:34]}  Kf5 {[%clk 0:00:56]} 46. c5 {[%clk 0:00:34]}  Kxg5 {[%clk 0:00:57]} 47. c6 {[%clk 0:00:34]}  Kxh6 {[%clk 0:00:57]} 48. c7 {[%clk 0:00:35]}  g5 {[%clk 0:00:58]} 49. c8=Q {[%clk 0:00:36]}  Kh5 {[%clk 0:00:59]} 50. Qh3+ {[%clk 0:00:35]} 1-0


[Site "https://www.chess.com"]